[Event "56th Biel Festival MTO 2023"]
[White "Hornung,Hans"]
[Black "Papaux,Steve"]
[Site "Biel"]
[Round "6.45"]
[Annotator "ChessBase"]
[Result "1-0"]
[Date "2023.07.24"]
[WhiteElo "2047"]
[BlackElo "2064"]
[PlyCount "165"]
[TimeControl "60"]

1. c4 {[%emt 0:0:0]} c6 {[%emt 0:0:0]} 2. e4 {[%emt 0:0:0]} d5 {[%emt 0:0:0]} 3. exd5 {[%emt 0:0:0]} cxd5 {[%emt 0:0:0]} 4. cxd5 {[%emt 0:0:0]} Nf6 {[%emt 0:0:0]} 5. Nc3 {[%emt 0:0:0]} Nxd5 {[%emt 0:0:0]} 6. Nf3 {[%emt 0:0:0]} Nc6 {[%emt 0:0:0]} 7. Bb5 {[%emt 0:0:0]} Bg4 {[%emt 0:0:0]} 8. Qa4 {[%emt 0:0:0]} Nxc3 {[%emt 0:0:0]} 9. Bxc6+ {[%emt 0:1:21]} bxc6 {[%emt 0:0:0]} 10. Qxg4 {[%emt 0:1:11]} Nd5 {[%emt 0:0:0]} 11. O-O {[%emt 0:2:41]} e6 {[%emt 0:0:0]} 12. d4 {[%emt 0:0:55]} Nf6 {[%emt 0:1:50]} 13. Qh3 {[%emt 0:5:22]} Qd5 {[%emt 0:2:29]} 14. Bf4 {[%emt 0:2:56]} Ne4 {[%emt 0:3:6]} 15. Nd2 {[%emt 0:15:47]} Qxd4 {[%emt 0:6:26]} 16. Nxe4 {[%emt 0:3:26]} Qxe4 {[%emt 0:0:3]} 17. Qg3 {[%emt 0:1:43]} Qg6 {[%emt 0:1:54]} 18. Qf3 {[%emt 0:1:16]} Rc8 {[%emt 0:1:19]} 19. Rac1 {[%emt 0:0:23]} Be7 {[%emt 0:0:35]} 20. Rxc6 {[%emt 0:0:45]} O-O {[%emt 0:0:4]} 21. Rfc1 {[%emt 0:1:41]} Rxc6 {[%emt 0:0:31]} 22. Qxc6 {[%emt 0:0:31]} Bf6 {[%emt 0:0:38]} 23. Qc2 {[%emt 0:3:28]} Qg4 {[%emt 0:1:23]} 24. Be3 {[%emt 0:0:34]} h5 {[%emt 0:5:3]} 25. h3 {[%emt 0:7:39]} Qh4 {[%emt 0:1:41]} 26. b3 {[%emt 0:1:11]} a5 {[%emt 0:3:8]} 27. Qc4 {[%emt 0:1:37]} Qxc4 {[%emt 0:3:54]} 28. Rxc4 {[%emt 0:0:37]} Rd8 {[%emt 0:0:6]} 29. Kf1 {[%emt 0:2:12]} Rd5 {[%emt 0:2:38]} 30. Rc8+ {[%emt 0:1:26]} Kh7 {[%emt 0:0:6]} 31. Ke2 {[%emt 0:0:28]} Kg6 {[%emt 0:5:24]} 32. Rc5 {[%emt 0:0:51]} Kf5 {[%emt 0:0:37]} 33. Rxd5+ {[%emt 0:0:28]} exd5 {[%emt 0:0:3]} 34. Kd3 {[%emt 0:0:21]} Bd8 {[%emt 0:2:8]} 35. Kd4 {[%emt 0:1:48]} Ke6 {[%emt 0:0:6]} 36. Kc5 {[%emt 0:3:41]} Ke5 {[%emt 0:1:24]} 37. Bd4+ {[%emt 0:1:39]} Ke4 {[%emt 0:0:2]} 38. f3+ {[%emt 0:2:38]} Kf4 {[%emt 0:0:4]} 39. Bf2 {[%emt 0:2:3]} d4 {[%emt 0:0:2]} 40. Kc4 {[%emt 0:2:13]} Bb6 {[%emt 0:0:16]} 41. Bxd4 {[%emt 0:31:30]} Bd8 {[%emt 0:31:58]} 42. Bf2 {[%emt 0:1:41]} g5 {[%emt 0:0:9]} 43. Kd3 {[%emt 0:2:1]} f5 {[%emt 0:1:23]} 44. Ke2 {[%emt 0:0:39]} h4 {[%emt 0:0:3]} 45. Be1 {[%emt 0:3:4]} Bb6 {[%emt 0:0:59]} 46. a3 {[%emt 0:0:17]} Bd8 {[%emt 0:1:17]} 47. Bf2 {[%emt 0:11:50]} Bc7 {[%emt 0:2:47]} 48. Be3+ {[%emt 0:11:39]} Kg3 {[%emt 0:0:4]} 49. Bxg5 {[%emt 0:0:23]} Bd6 {[%emt 0:0:14]} 50. Kf1 {[%emt 0:2:46]} Bxa3 {[%emt 0:0:23]} 51. Bd8 {[%emt 0:2:18]} Bb4 {[%emt 0:0:15]} 52. Bc7+ {[%emt 0:0:0]} f4 {[%emt 0:0:0]} 53. Bb6 {[%emt 0:0:0]} Kh2 {[%emt 0:0:0]} 54. Bg1+ {[%emt 0:0:0]} Kh1 {[%emt 0:0:0]} 55. Bd4 {[%emt 0:0:0]} Kh2 {[%emt 0:0:0]} 56. Bf2 {[%emt 0:0:0]} Be7 {[%emt 0:0:0]} 57. Be1 {[%emt 0:0:0]} Bd8 {[%emt 0:0:0]} 58. Bc3 {[%emt 0:0:0]} Bb6 {[%emt 0:0:0]} 59. Be5 {[%emt 0:0:0]} Kg3 {[%emt 0:0:0]} 60. Bf6 {[%emt 0:0:0]} Bc7 {[%emt 0:0:0]} 61. Be7 {[%emt 0:0:0]} Bb6 {[%emt 0:0:0]} 62. Bd6 {[%emt 0:0:0]} Bd8 {[%emt 0:0:0]} 63. Bc5 {[%emt 0:0:0]} Kh2 {[%emt 0:0:0]} 64. Bf2 {[%emt 0:0:0]} Kh1 {[%emt 0:0:0]} 65. Ba7 {[%emt 0:0:0]} Bc7 {[%emt 0:0:0]} 66. Bc5 {[%emt 0:0:0]} Kh2 {[%emt 0:0:0]} 67. Kf2 {[%emt 0:0:0]} Bd8 {[%emt 0:0:0]} 68. Bd6 {[%emt 0:0:0]} Bb6+ {[%emt 0:0:0]} 69. Kf1 {[%emt 0:0:0]} Kg3 {[%emt 0:0:0]} 70. Bb8 {[%emt 0:0:0]} Bd8 {[%emt 0:0:0]} 71. Ba7 {[%emt 0:0:0]} Kh2 {[%emt 0:0:0]} 72. Bc5 {[%emt 0:0:0]} Bc7 {[%emt 0:0:0]} 73. Bg1+ {[%emt 0:0:0]} Kh1 {[%emt 0:0:0]} 74. Bd4 {[%emt 0:0:0]} Kh2 {[%emt 0:0:0]} 75. Bc5 {[%emt 0:0:0]} Bd8 {[%emt 0:0:0]} 76. Bf2 {[%emt 0:0:0]} Kh1 {[%emt 0:0:0]} 77. Bd4 {[%emt 0:1:32]} Kh2 {[%emt 0:0:0]} 78. Bc5 {[%emt 0:0:18]} Bc7 {[%emt 0:0:0]} 79. Be7 {[%emt 0:1:11]} Kg3 {[%emt 0:0:0]} 80. Kg1 {[%emt 0:1:4]} Bb6+ {[%emt 0:0:0]} 81. Kh1 {[%emt 0:1:24]} Bc7 {[%emt 0:0:0]} 82. Bc5 {[%emt 0:0:35]} Bd8 {[%emt 0:0:0]} 83. Kg1 {[%emt 0:1:4]} 1-0

[Event "56th Biel Festival MTO 2023"]
[White "Ozcan,Kaan"]
[Black "Perkampus,Laurin"]
[Site "Biel"]
[Round "6.46"]
[Annotator "ChessBase"]
[Result "1/2-1/2"]
[Date "2023.07.24"]
[WhiteElo "2196"]
[BlackElo "2197"]
[PlyCount "110"]
[TimeControl "60"]

1. e4 {[%emt 0:0:0]} c6 {[%emt 0:0:0]} 2. d4 {[%emt 0:0:0]} d5 {[%emt 0:0:0]} 3. Nd2 {[%emt 0:0:0]} dxe4 {[%emt 0:0:0]} 4. Nxe4 {[%emt 0:0:0]} Nf6 {[%emt 0:0:0]} 5. Nxf6+ {[%emt 0:0:0]} exf6 {[%emt 0:0:0]} 6. c3 {[%emt 0:0:0]} Bd6 {[%emt 0:0:0]} 7. Bd3 {[%emt 0:0:0]} O-O {[%emt 0:0:0]} 8. Qc2 {[%emt 0:0:0]} Re8+ {[%emt 0:0:0]} 9. Ne2 {[%emt 0:0:0]} h5 {[%emt 0:0:0]} 10. O-O {[%emt 0:0:0]} h4 {[%emt 0:0:0]} 11. h3 {[%emt 0:0:0]} Nd7 {[%emt 0:0:0]} 12. Bd2 {[%emt 0:0:0]} Nf8 {[%emt 0:0:0]} 13. Rae1 {[%emt 0:0:0]} Bc7 {[%emt 0:0:0]} 14. f4 {[%emt 0:0:0]} g6 {[%emt 0:0:0]} 15. f5 {[%emt 0:0:0]} g5 {[%emt 0:0:0]} 16. Qd1 {[%emt 0:0:0]} c5 {[%emt 0:0:0]} 17. Bb5 {[%emt 0:19:2]} Bd7 {[%emt 0:9:25]} 18. Bc4 {[%emt 0:15:42]} Bc6 {[%emt 0:18:39]} 19. dxc5 {[%emt 0:17:33]} b5 {[%emt 0:7:52]} 20. Nd4 {[%emt 0:13:15]} bxc4 {[%emt 0:9:3]} 21. Nxc6 {[%emt 0:0:32]} Qd5 {[%emt 0:15:51]} 22. Nd4 {[%emt 0:4:23]} Qxc5 {[%emt 0:1:37]} 23. Qg4 {[%emt 0:7:6]} Nh7 {[%emt 0:9:48]} 24. Be3 {[%emt 0:3:36]} Qd5 {[%emt 0:3:38]} 25. Bf2 {[%emt 0:4:51]} Kh8 {[%emt 0:3:49]} 26. Nf3 {[%emt 0:1:18]} Rab8 {[%emt 0:5:15]} 27. Bd4 {[%emt 0:5:1]} Bb6 {[%emt 0:2:11]} 28. Rxe8+ {[%emt 0:2:51]} Rxe8 {[%emt 0:0:6]} 29. Bxb6 {[%emt 0:0:6]} Re4 {[%emt 0:2:20]} 30. Qh5 {[%emt 0:0:14]} axb6 {[%emt 0:0:13]} 31. Nd4 {[%emt 0:1:26]} Kg7 {[%emt 0:3:46]} 32. Rd1 {[%emt 0:1:19]} Qc5 {[%emt 0:2:5]} 33. Kh1 {[%emt 0:2:34]} Nf8 {[%emt 0:0:52]} 34. Qf3 {[%emt 0:0:34]} Qe5 {[%emt 0:2:25]} 35. Qf2 {[%emt 0:2:24]} Rf4 {[%emt 0:1:37]} 36. Qd2 {[%emt 0:1:16]} g4 {[%emt 0:1:36]} 37. Re1 {[%emt 0:0:54]} Re4 {[%emt 0:0:56]} 38. Rxe4 {[%emt 0:0:17]} Qxe4 {[%emt 0:0:2]} 39. hxg4 {[%emt 0:0:28]} Qxg4 {[%emt 0:0:34]} 40. Qe3 {[%emt 0:3:5]} Qg5 {[%emt 0:6:0]} 41. Qxg5+ {[%emt 0:0:0]} fxg5 {[%emt 0:0:0]} 42. Nb5 {[%emt 0:0:0]} Nd7 {[%emt 0:0:0]} 43. Nd6 {[%emt 0:0:0]} Ne5 {[%emt 0:0:0]} 44. Nc8 {[%emt 0:4:20]} b5 {[%emt 0:1:9]} 45. Nd6 {[%emt 0:1:16]} Nd3 {[%emt 0:3:16]} 46. Nxb5 {[%emt 0:5:2]} Nxb2 {[%emt 0:0:9]} 47. Nd6 {[%emt 0:2:55]} Kf6 {[%emt 0:2:25]} 48. g3 {[%emt 0:1:54]} hxg3 {[%emt 0:10:32]} 49. Kg2 {[%emt 0:0:32]} Na4 {[%emt 0:2:6]} 50. Kxg3 {[%emt 0:1:43]} Nxc3 {[%emt 0:1:31]} 51. Kg4 {[%emt 0:0:44]} Nxa2 {[%emt 0:4:29]} 52. Nxc4 {[%emt 0:0:15]} Nc3 {[%emt 0:1:4]} 53. Nd6 {[%emt 0:0:6]} Ke7 {[%emt 0:0:39]} 54. Nxf7 {[%emt 0:0:7]} Kxf7 {[%emt 0:0:3]} 55. Kxg5 {[%emt 0:0:5]} Ne4+ {[%emt 0:0:4]} 1/2-1/2

[Event "56th Biel Festival MTO 2023"]
[White "Giacomini,Hector"]
[Black "Schnell,Simon"]
[Site "Biel"]
[Round "6.47"]
[Annotator "ChessBase"]
[Result "1/2-1/2"]
[Date "2023.07.25"]
[WhiteElo "2126"]
[BlackElo "2029"]
[PlyCount "167"]
[TimeControl "60"]

1. Nf3 {[%emt 0:0:0]} Nf6 {[%emt 0:0:0]} 2. e3 {[%emt 0:0:0]} g6 {[%emt 0:0:0]} 3. d4 {[%emt 0:0:0]} Bg7 {[%emt 0:0:0]} 4. c4 {[%emt 0:0:0]} O-O {[%emt 0:0:0]} 5. Be2 {[%emt 0:0:0]} d5 {[%emt 0:0:0]} 6. cxd5 {[%emt 0:0:0]} Nxd5 {[%emt 0:0:0]} 7. e4 {[%emt 0:0:0]} Nb6 {[%emt 0:0:0]} 8. O-O {[%emt 0:0:0]} Nc6 {[%emt 0:0:0]} 9. Be3 {[%emt 0:0:0]} f5 {[%emt 0:0:0]} 10. exf5 {[%emt 0:0:0]} Bxf5 {[%emt 0:0:0]} 11. Nc3 {[%emt 0:0:0]} Qd6 {[%emt 0:0:0]} 12. Qd2 {[%emt 0:0:0]} Rad8 {[%emt 0:0:0]} 13. Rfd1 {[%emt 0:0:0]} Qb4 {[%emt 0:0:0]} 14. Nb5 {[%emt 0:4:37]} Nd5 {[%emt 0:7:49]} 15. a3 {[%emt 0:21:51]} Qxd2 {[%emt 0:5:52]} 16. Bxd2 {[%emt 0:4:29]} a6 {[%emt 0:7:59]} 17. Nc3 {[%emt 0:0:5]} Nxc3 {[%emt 0:2:19]} 18. Bxc3 {[%emt 0:1:38]} Be4 {[%emt 0:8:51]} 19. Ng5 {[%emt 0:9:25]} Bd5 {[%emt 0:2:6]} 20. Bg4 {[%emt 0:1:4]} Rd6 {[%emt 0:6:11]} 21. Re1 {[%emt 0:0:42]} Kh8 {[%emt 0:12:12]} 22. Rad1 {[%emt 0:18:7]} Bf6 {[%emt 0:8:31]} 23. Ne4 {[%emt 0:13:11]} Bxe4 {[%emt 0:1:6]} 24. Rxe4 {[%emt 0:0:4]} Rfd8 {[%emt 0:0:19]} 25. Kf1 {[%emt 0:4:47]} b6 {[%emt 0:9:36]} 26. Be2 {[%emt 0:4:12]} a5 {[%emt 0:3:39]} 27. Rc1 {[%emt 0:1:25]} Nxd4 {[%emt 0:5:12]} 28. Bxd4 {[%emt 0:1:30]} Rxd4 {[%emt 0:0:14]} 29. Rxd4 {[%emt 0:1:8]} Rxd4 {[%emt 0:0:10]} 30. Rxc7 {[%emt 0:1:41]} Rd2 {[%emt 0:1:29]} 31. b3 {[%emt 0:2:15]} Ra2 {[%emt 0:1:3]} 32. Bc4 {[%emt 0:3:26]} Bd4 {[%emt 0:2:29]} 33. Rxe7 {[%emt 0:6:21]} Rxf2+ {[%emt 0:1:14]} 34. Ke1 {[%emt 0:0:6]} Rxg2 {[%emt 0:1:23]} 35. Re2 {[%emt 0:0:17]} Rg1+ {[%emt 0:3:59]} 36. Kd2 {[%emt 0:0:5]} Bc5 {[%emt 0:0:10]} 37. a4 {[%emt 0:0:18]} Kg7 {[%emt 0:0:21]} 38. Kd3 {[%emt 0:0:50]} h5 {[%emt 0:0:50]} 39. Ke4 {[%emt 0:1:11]} Rg5 {[%emt 0:1:1]} 40. Kf3 {[%emt 0:1:27]} Rf5+ {[%emt 0:2:27]} 41. Kg2 {[%emt 0:32:36]} Kh6 {[%emt 0:39:15]} 42. Re6 {[%emt 0:1:53]} Rf2+ {[%emt 0:0:0]} 43. Kg3 {[%emt 0:0:0]} Rd2 {[%emt 0:0:0]} 44. Re2 {[%emt 0:0:0]} Rd4 {[%emt 0:0:0]} 45. Kf3 {[%emt 0:0:0]} Kg5 {[%emt 0:0:0]} 46. Re4 {[%emt 0:0:0]} Rd2 {[%emt 0:0:0]} 47. Re2 {[%emt 0:0:0]} Rd8 {[%emt 0:0:0]} 48. Rg2+ {[%emt 0:0:0]} Kf6 {[%emt 0:0:0]} 49. Re2 {[%emt 0:0:0]} g5 {[%emt 0:0:0]} 50. h3 {[%emt 0:0:0]} Kf5 {[%emt 0:0:0]} 51. Be6+ {[%emt 0:0:0]} Kf6 {[%emt 0:0:0]} 52. Bc4 {[%emt 0:0:0]} Rd6 {[%emt 0:0:0]} 53. Ba6 {[%emt 0:0:0]} Rd1 {[%emt 0:0:0]} 54. Kg2 {[%emt 0:0:0]} Rg1+ {[%emt 0:0:0]} 55. Kh2 {[%emt 0:0:0]} h4 {[%emt 0:0:0]} 56. Bc8 {[%emt 0:0:0]} Rg3 {[%emt 0:0:0]} 57. Be6 {[%emt 0:0:0]} Bd6 {[%emt 0:0:0]} 58. Kh1 {[%emt 0:0:0]} Be5 {[%emt 0:0:0]} 59. Bg4 {[%emt 0:0:0]} Rxb3 {[%emt 0:0:0]} 60. Ra2 {[%emt 0:0:0]} Rg3 {[%emt 0:0:0]} 61. Rc2 {[%emt 0:0:0]} Bd4 {[%emt 0:0:0]} 62. Re2 {[%emt 0:0:0]} Bc5 {[%emt 0:0:0]} 63. Re6+ {[%emt 0:0:0]} Kf7 {[%emt 0:0:0]} 64. Re4 {[%emt 0:0:0]} Be3 {[%emt 0:0:0]} 65. Bd7 {[%emt 0:0:0]} Bf4 {[%emt 0:0:0]} 66. Bg4 {[%emt 0:0:11]} Kg7 {[%emt 0:0:0]} 67. Bd7 {[%emt 0:2:10]} Rb3 {[%emt 0:0:0]} 68. Kg2 {[%emt 0:0:59]} Rd3 {[%emt 0:0:0]} 69. Bg4 {[%emt 0:0:28]} Rb3 {[%emt 0:0:0]} 70. Kf2 {[%emt 0:1:13]} Kf6 {[%emt 0:0:0]} 71. Re6+ {[%emt 0:0:35]} Kg7 {[%emt 0:0:0]} 72. Re4 {[%emt 0:0:7]} b5 {[%emt 0:0:52]} 73. axb5 {[%emt 0:0:15]} Rxb5 {[%emt 0:0:9]} 74. Ke2 {[%emt 0:0:20]} Rd5 {[%emt 0:3:46]} 75. Be6 {[%emt 0:2:0]} Rd6 {[%emt 0:2:31]} 76. Bg4 {[%emt 0:1:14]} Rd2+ {[%emt 0:0:15]} 77. Ke1 {[%emt 0:0:17]} Ra2 {[%emt 0:0:25]} 78. Bd7 {[%emt 0:1:13]} Kf6 {[%emt 0:0:36]} 79. Re6+ {[%emt 0:0:13]} Kg7 {[%emt 0:0:14]} 80. Re4 {[%emt 0:0:13]} Bg3+ {[%emt 0:3:15]} 81. Kd1 {[%emt 0:0:28]} Bf4 {[%emt 0:0:15]} 82. Ke1 {[%emt 0:0:5]} Bg3+ {[%emt 0:3:53]} 83. Kd1 {[%emt 0:0:11]} Bf4 {[%emt 0:0:1]} 84. Ke1 {[%emt 0:0:6]} 1/2-1/2

[Event "56th Biel Festival MTO 2023"]
[White "Bu,Xiangzhi"]
[Black "Nguyen,Ngoc Truong Son"]
[Site "Biel"]
[Round "7.1"]
[Annotator "RC"]
[Result "1-0"]
[Date "2023.07.25"]
[WhiteElo "2676"]
[BlackElo "2645"]
[PlyCount "89"]
[TimeControl "60"]

1. Nf3 {[%emt 0:0:0]} d5 {[%emt 0:0:0]} 2. d4 {[%emt 0:0:0]} Nf6 {[%emt 0:0:0]} 3. c4 {[%emt 0:0:0]} e6 {[%emt 0:0:0]} 4. Nc3 {[%emt 0:0:0]} Bb4 {[%emt 0:0:0]} 5. e3 {[%emt 0:0:0]} O-O {[%emt 0:1:28]} 6. Bd2 {[%emt 0:0:0]} c5 {[%emt 0:0:57]} 7. a3 {[%emt 0:0:24]} Bxc3 {[%emt 0:0:19]} 8. Bxc3 {[%emt 0:0:5]} Ne4 {[%emt 0:0:13]} 9. Qc2 {[%emt 0:6:8]} Nxc3 {[%emt 0:1:46]} 10. Qxc3 {[%emt 0:0:7]} cxd4 {[%emt 0:0:26]} 11. Nxd4 {[%emt 0:4:10]} dxc4 {[%emt 0:1:58]} 12. Bxc4 {[%emt 0:11:57]} Bd7 {[%emt 0:0:14]} 13. Rd1 {[%emt 0:2:56]} Qe7 {[%emt 0:2:52]} 14. Qb3 {[%emt 0:2:40]} b6 {[%emt 0:1:29]} 15. Bb5 {[%emt 0:0:36]} Rc8 {[%emt 0:4:51]} 16. O-O {[%emt 0:0:49]} Bxb5 {[%emt 0:10:8]} 17. Qxb5 {[%emt 0:0:39]} Qb7 {[%emt 0:16:3]} 18. Rd2 {[%emt 0:19:34]} a6 {[%emt 0:1:58]} 19. Qb3 {[%emt 0:3:58]} Nc6 {[%emt 0:6:23]} 20. Nxc6 {[%emt 0:0:8]} Qxc6 {[%emt 0:0:14]} 21. Rfd1 {[%emt 0:0:6]} b5 {[%emt 0:0:29]} 22. h3 {[%emt 0:2:26]} h6 {[%emt 0:0:53]} 23. Qb4 {[%emt 0:0:58]} Rc7 {[%emt 0:3:22]} 24. Qf4 {[%emt 0:1:26]} Rac8 {[%emt 0:14:5]} 25. Kh2 {[%emt 0:8:53]} Kh7 {[%emt 0:3:33]} 26. Rd6 {[%emt 0:2:14]} Qb7 {[%emt 0:1:49]} 27. b3 {[%emt 0:3:37]} Re7 {[%emt 0:2:33]} 28. Qd4 {[%emt 0:0:38]} Qc7 {[%emt 0:1:52]} 29. Qe4+ {[%emt 0:7:20]} f5 {[%emt 0:2:13]} 30. Qf4 {[%emt 0:0:56]} Qc2 {[%emt 0:6:30]} 31. b4 {[%emt 0:2:17]} Rc4 {[%emt 0:6:8]} 32. Qg3 {[%emt 0:11:47]} Rc6 {[%emt 0:3:54]} 33. Rxc6 {[%emt 0:2:40]} Qxc6 {[%emt 0:0:5]} 34. Rd6 {[%emt 0:1:45]} Qc8 {[%emt 0:0:5]} 35. Qe5 {[%emt 0:0:34]} Kg8 {[%emt 0:0:13]} 36. e4 {[%emt 0:2:27]} Qc7 {[%emt 0:3:21]} 37. exf5 {[%emt 0:1:33]} exf5 {[%emt 0:0:12]} 38. Qd5+ {[%emt 0:0:4]} Kh8 {[%emt 0:1:28]} 39. g3 {[%emt 0:0:52]} Qc2 {[%emt 0:4:8]} 40. Rxh6+ {[%emt 0:0:37]} gxh6 {[%emt 0:0:16]} 41. Qd8+ {[%emt 0:30:1]} Kg7 {[%emt 0:0:0]} 42. Qxe7+ {[%emt 0:0:0]} Kg6 {[%emt 0:0:0]} 43. Qe6+ {[%emt 0:0:0]} Kg7 {[%emt 0:0:0]} 44. Kg2 {[%emt 0:0:0]} h5 {[%emt 0:0:0]} 45. h4 {[%emt 0:0:0]} 1-0

[Event "56th Biel Festival MTO 2023"]
[White "Pranav Anand"]
[Black "Aryan Chopra"]
[Site "Biel"]
[Round "7.2"]
[Annotator "ChessBase"]
[Result "1/2-1/2"]
[Date "2023.07.26"]
[WhiteElo "2510"]
[BlackElo "2626"]
[PlyCount "161"]
[TimeControl "60"]

1. d4 {[%emt 0:0:0]} Nf6 {[%emt 0:0:0]} 2. c4 {[%emt 0:0:0]} e6 {[%emt 0:0:0]} 3. g3 {[%emt 0:0:0]} c5 {[%emt 0:0:0]} 4. d5 {[%emt 0:0:0]} exd5 {[%emt 0:0:0]} 5. cxd5 {[%emt 0:0:0]} d6 {[%emt 0:0:0]} 6. Nc3 {[%emt 0:0:0]} g6 {[%emt 0:0:0]} 7. Bg2 {[%emt 0:0:0]} Bg7 {[%emt 0:0:0]} 8. Nf3 {[%emt 0:0:0]} O-O {[%emt 0:0:0]} 9. O-O {[%emt 0:0:0]} Re8 {[%emt 0:0:0]} 10. Bf4 {[%emt 0:0:0]} Bf5 {[%emt 0:0:0]} 11. a4 {[%emt 0:0:0]} Ne4 {[%emt 0:0:0]} 12. Nd2 {[%emt 0:0:0]} Nxc3 {[%emt 0:0:0]} 13. bxc3 {[%emt 0:0:0]} g5 {[%emt 0:0:0]} 14. e4 {[%emt 0:0:0]} gxf4 {[%emt 0:0:0]} 15. exf5 {[%emt 0:0:0]} Bxc3 {[%emt 0:0:0]} 16. Ra3 {[%emt 0:0:0]} Bxd2 {[%emt 0:0:0]} 17. Qxd2 {[%emt 0:0:0]} Qg5 {[%emt 0:0:0]} 18. h4 {[%emt 0:0:0]} Qxf5 {[%emt 0:0:0]} 19. Rf3 {[%emt 0:0:0]} Nd7 {[%emt 0:0:0]} 20. Rxf4 {[%emt 0:0:0]} Qg6 {[%emt 0:0:0]} 21. Qd1 {[%emt 0:0:0]} Ne5 {[%emt 0:0:0]} 22. Re1 {[%emt 0:6:14]} Qg7 {[%emt 0:0:0]} 23. h5 {[%emt 0:1:33]} h6 {[%emt 0:4:38]} 24. Be4 {[%emt 0:10:36]} b6 {[%emt 0:20:11]} 25. Kg2 {[%emt 0:6:23]} a6 {[%emt 0:1:32]} 26. Bd3 {[%emt 0:9:37]} Kh8 {[%emt 0:9:20]} 27. Rh1 {[%emt 0:3:39]} Rg8 {[%emt 0:14:34]} 28. Rhh4 {[%emt 0:7:37]} b5 {[%emt 0:10:11]} 29. axb5 {[%emt 0:1:42]} axb5 {[%emt 0:0:4]} 30. Bxb5 {[%emt 0:0:19]} Ra3 {[%emt 0:1:27]} 31. Qe1 {[%emt 0:12:26]} Rb8 {[%emt 0:12:56]} 32. Qc1 {[%emt 0:3:45]} Rb3 {[%emt 0:1:50]} 33. Bc4 {[%emt 0:4:54]} Rb1 {[%emt 0:1:47]} 34. Qd2 {[%emt 0:11:19]} Ra1 {[%emt 0:12:47]} 35. Bd3 {[%emt 0:1:39]} Rba8 {[%emt 0:2:16]} 36. Rf5 {[%emt 0:6:35]} R1a2 {[%emt 0:3:18]} 37. Bc2 {[%emt 0:2:46]} Rb2 {[%emt 0:6:35]} 38. Qc1 {[%emt 0:1:13]} Rba2 {[%emt 0:2:22]} 39. Rhf4 {[%emt 0:4:1]} c4 {[%emt 0:1:4]} 40. Qb1 {[%emt 0:10:26]} R2a5 {[%emt 0:3:2]} 41. Rf6 {[%emt 0:0:0]} Qf8 {[%emt 0:0:0]} 42. Qc1 {[%emt 0:0:0]} Ra1 {[%emt 0:0:0]} 43. Qd2 {[%emt 0:0:0]} c3 {[%emt 0:0:0]} 44. Qxc3 {[%emt 0:0:0]} Qc8 {[%emt 0:0:0]} 45. Qxc8+ {[%emt 0:11:21]} Rxc8 {[%emt 0:0:0]} 46. Be4 {[%emt 0:0:9]} Rcc1 {[%emt 0:0:23]} 47. Kh2 {[%emt 0:5:4]} Kg7 {[%emt 0:3:36]} 48. Rxd6 {[%emt 0:1:17]} Rc4 {[%emt 0:3:30]} 49. Kh3 {[%emt 0:8:23]} Re1 {[%emt 0:12:41]} 50. Bg2 {[%emt 0:0:38]} Rxf4 {[%emt 0:0:5]} 51. gxf4 {[%emt 0:0:4]} Nd3 {[%emt 0:0:4]} 52. Kg3 {[%emt 0:1:14]} Rg1 {[%emt 0:0:5]} 53. Kh2 {[%emt 0:0:59]} Rd1 {[%emt 0:10:46]} 54. f5 {[%emt 0:0:34]} f6 {[%emt 0:0:8]} 55. Kg3 {[%emt 0:5:44]} Rg1 {[%emt 0:0:5]} 56. Re6 {[%emt 0:2:35]} Ne1 {[%emt 0:1:22]} 57. d6 {[%emt 0:0:27]} Kf7 {[%emt 0:3:37]} 58. Re7+ {[%emt 0:1:31]} Kf8 {[%emt 0:0:1]} 59. Re4 {[%emt 0:1:26]} Kf7 {[%emt 0:0:46]} 60. Re7+ {[%emt 0:0:21]} Kf8 {[%emt 0:0:6]} 61. Re4 {[%emt 0:0:0]} Kf7 {[%emt 0:0:0]} 62. d7 {[%emt 0:0:33]} Rxg2+ {[%emt 0:0:0]} 63. Kh3 {[%emt 0:0:13]} Rg8 {[%emt 0:0:0]} 64. Rxe1 {[%emt 0:0:2]} Rd8 {[%emt 0:0:0]} 65. Rd1 {[%emt 0:0:14]} Ke7 {[%emt 0:0:0]} 66. Rg1 {[%emt 0:0:3]} Kf7 {[%emt 0:0:0]} 67. Rg6 {[%emt 0:0:36]} Rxd7 {[%emt 0:0:0]} 68. Rxh6 {[%emt 0:0:4]} Rd1 {[%emt 0:0:0]} 69. Kg2 {[%emt 0:1:52]} Rd5 {[%emt 0:0:0]} 70. Kg3 {[%emt 0:0:10]} Rxf5 {[%emt 0:0:0]} 71. f4 {[%emt 0:0:10]} Ra5 {[%emt 0:0:0]} 72. Kg4 {[%emt 0:0:39]} Kg7 {[%emt 0:0:0]} 73. Rg6+ {[%emt 0:0:4]} Kf7 {[%emt 0:0:0]} 74. Kh4 {[%emt 0:0:5]} Ra4 {[%emt 0:0:0]} 75. Kg3 {[%emt 0:1:6]} Ra5 {[%emt 0:0:0]} 76. Kg4 {[%emt 0:1:43]} Ra1 {[%emt 0:0:0]} 77. f5 {[%emt 0:0:34]} Rg1+ {[%emt 0:0:0]} 78. Kf4 {[%emt 0:0:9]} Rf1+ {[%emt 0:0:0]} 79. Kg4 {[%emt 0:0:10]} Rg1+ {[%emt 0:0:0]} 80. Kf4 {[%emt 0:0:3]} Rf1+ {[%emt 0:0:0]} 81. Kg4 {[%emt 0:0:2]} 1/2-1/2

[Event "56th Biel Festival MTO 2023"]
[White "Samant Aditya S"]
[Black "Yuffa,Daniil"]
[Site "Biel"]
[Round "7.3"]
[Annotator "ChessBase"]
[Result "1-0"]
[Date "2023.07.25"]
[WhiteElo "2510"]
[BlackElo "2603"]
[PlyCount "77"]
[TimeControl "60"]

1. e4 {[%emt 0:0:0]} c5 {[%emt 0:0:0]} 2. Nf3 {[%emt 0:0:0]} d6 {[%emt 0:0:0]} 3. d4 {[%emt 0:0:0]} cxd4 {[%emt 0:0:0]} 4. Nxd4 {[%emt 0:0:0]} Nf6 {[%emt 0:0:0]} 5. Nc3 {[%emt 0:0:0]} a6 {[%emt 0:0:0]} 6. h3 {[%emt 0:0:0]} e6 {[%emt 0:0:0]} 7. g4 {[%emt 0:0:0]} h6 {[%emt 0:0:0]} 8. Bg2 {[%emt 0:9:35]} Be7 {[%emt 0:0:0]} 9. Be3 {[%emt 0:7:7]} Nc6 {[%emt 0:0:0]} 10. f4 {[%emt 0:8:52]} Bd7 {[%emt 0:0:0]} 11. Qe2 {[%emt 0:7:20]} b5 {[%emt 0:22:53]} 12. O-O-O {[%emt 0:24:53]} Nxd4 {[%emt 0:13:13]} 13. Bxd4 {[%emt 0:2:1]} b4 {[%emt 0:1:48]} 14. e5 {[%emt 0:1:7]} bxc3 {[%emt 0:0:47]} 15. Bxa8 {[%emt 0:8:13]} Qxa8 {[%emt 0:3:17]} 16. exf6 {[%emt 0:1:50]} cxb2+ {[%emt 0:0:54]} 17. Bxb2 {[%emt 0:0:48]} gxf6 {[%emt 0:1:0]} 18. Qe3 {[%emt 0:9:35]} Ba4 {[%emt 0:14:17]} 19. Rh2 {[%emt 0:3:7]} Kd7 {[%emt 0:9:40]} 20. g5 {[%emt 0:7:54]} hxg5 {[%emt 0:4:56]} 21. fxg5 {[%emt 0:0:2]} Rc8 {[%emt 0:3:36]} 22. Bxf6 {[%emt 0:3:19]} Qc6 {[%emt 0:2:49]} 23. Bxe7 {[%emt 0:3:6]} Kxe7 {[%emt 0:0:4]} 24. Rdd2 {[%emt 0:0:6]} Rb8 {[%emt 0:5:24]} 25. Qa7+ {[%emt 0:2:15]} Rb7 {[%emt 0:0:23]} 26. Qd4 {[%emt 0:0:17]} e5 {[%emt 0:2:50]} 27. Rhe2 {[%emt 0:1:21]} Rb5 {[%emt 0:5:11]} 28. Qa7+ {[%emt 0:0:46]} Kf8 {[%emt 0:5:29]} 29. g6 {[%emt 0:0:52]} Rb7 {[%emt 0:0:4]} 30. g7+ {[%emt 0:0:28]} Kxg7 {[%emt 0:0:39]} 31. Rg2+ {[%emt 0:0:24]} Kf8 {[%emt 0:1:35]} 32. Qe3 {[%emt 0:0:29]} Ke8 {[%emt 0:1:33]} 33. Qh6 {[%emt 0:0:29]} Kd7 {[%emt 0:3:23]} 34. Qf6 {[%emt 0:0:26]} Kc7 {[%emt 0:0:44]} 35. Qxf7+ {[%emt 0:0:27]} Kb6 {[%emt 0:0:21]} 36. Qf6 {[%emt 0:0:45]} d5 {[%emt 0:1:5]} 37. Qxe5 {[%emt 0:0:23]} Rf7 {[%emt 0:0:19]} 38. Qd4+ {[%emt 0:0:25]} Kb7 {[%emt 0:0:6]} 39. Rg7 {[%emt 0:0:35]} 1-0

[Event "56th Biel Festival MTO 2023"]
[White "Deuer,Marius"]
[Black "Albornoz Cabrera,Carlos Daniel"]
[Site "Biel"]
[Round "7.4"]
[Annotator "ChessBase"]
[Result "1/2-1/2"]
[Date "2023.07.25"]
[WhiteElo "2374"]
[BlackElo "2591"]
[PlyCount "67"]
[TimeControl "60"]

1. d4 {[%emt 0:0:0]} Nf6 {[%emt 0:0:0]} 2. c4 {[%emt 0:0:0]} e6 {[%emt 0:0:0]} 3. Nf3 {[%emt 0:0:0]} d5 {[%emt 0:0:0]} 4. g3 {[%emt 0:0:0]} dxc4 {[%emt 0:0:0]} 5. Bg2 {[%emt 0:0:0]} a6 {[%emt 0:0:0]} 6. O-O {[%emt 0:0:0]} Nc6 {[%emt 0:0:0]} 7. e3 {[%emt 0:0:0]} Rb8 {[%emt 0:0:0]} 8. Nfd2 {[%emt 0:0:0]} e5 {[%emt 0:0:0]} 9. Bxc6+ {[%emt 0:0:0]} bxc6 {[%emt 0:0:0]} 10. dxe5 {[%emt 0:0:0]} Ng4 {[%emt 0:0:0]} 11. Nf3 {[%emt 0:0:0]} Qxd1 {[%emt 0:0:0]} 12. Rxd1 {[%emt 0:0:0]} Rb5 {[%emt 0:0:0]} 13. Rd4 {[%emt 0:0:0]} Nxe5 {[%emt 0:3:11]} 14. Nxe5 {[%emt 0:0:0]} Rxe5 {[%emt 0:0:3]} 15. Rxc4 {[%emt 0:0:0]} h5 {[%emt 0:10:17]} 16. e4 {[%emt 0:0:0]} Rc5 {[%emt 0:5:23]} 17. Nd2 {[%emt 0:12:36]} h4 {[%emt 0:5:10]} 18. Rxc5 {[%emt 0:11:31]} Bxc5 {[%emt 0:0:2]} 19. Nc4 {[%emt 0:2:54]} Be6 {[%emt 0:10:51]} 20. Be3 {[%emt 0:7:39]} Rh5 {[%emt 0:2:22]} 21. Bxc5 {[%emt 0:5:10]} Rxc5 {[%emt 0:0:56]} 22. Ne3 {[%emt 0:0:23]} hxg3 {[%emt 0:7:52]} 23. hxg3 {[%emt 0:0:26]} Rb5 {[%emt 0:7:24]} 24. Rc1 {[%emt 0:10:22]} Rxb2 {[%emt 0:1:16]} 25. Rxc6 {[%emt 0:0:7]} Kd7 {[%emt 0:1:57]} 26. Rxa6 {[%emt 0:1:4]} Rxa2 {[%emt 0:0:7]} 27. Rxa2 {[%emt 0:0:5]} Bxa2 {[%emt 0:0:3]} 28. Kf1 {[%emt 0:7:54]} Kc6 {[%emt 0:3:21]} 29. Ke2 {[%emt 0:3:34]} Kc5 {[%emt 0:0:47]} 30. Kd2 {[%emt 0:3:18]} Kd4 {[%emt 0:1:47]} 31. f3 {[%emt 0:1:34]} Be6 {[%emt 0:1:23]} 32. Nc2+ {[%emt 0:6:48]} Kc4 {[%emt 0:0:12]} 33. Ne3+ {[%emt 0:0:39]} Kb3 {[%emt 0:4:19]} 34. f4 {[%emt 0:1:17]} 1/2-1/2